fUSD/lending_fUSD_20250609
["ID","MTS","AMOUNT","RATE_DAILY","PERIOD"]
[365163403,1749505876223,-490.0,0.00019671,2]
[365163404,1749505876233,-343.39996701,0.00019671,2]
[365163405,1749505876243,-869.839935,0.00019671,2]
[365163406,1749505876253,-490.0,0.00019671,2]
[365163407,1749505876263,-3673.1,0.00019671,2]
[365163408,1749505876272,-490.0,0.00019671,2]
[365163409,1749505876282,-574.54,0.00019671,2]
[365163410,1749505876292,-761.53,0.00019671,2]
[365163411,1749505876301,-586.18,0.00019671,2]
[365163412,1749505876311,-193.63782,0.00019671,2]
[365163413,1749505876321,-2938.74,0.00019671,2]
[365163414,1749505876331,-790.33,0.00019671,2]
[365163415,1749505876342,-490.0,0.00019671,2]
[365163416,1749505876352,-490.0,0.00019671,2]
[365163417,1749505876362,-537.5,0.00019671,2]
[365163418,1749505876371,-586.9,0.00019671,2]
[365163419,1749505876382,-490.0,0.00019671,2]
[365163420,1749505876394,-1131.27,0.00019671,2]
[365163421,1749505876404,-490.0,0.00019671,2]
[365163422,1749505876414,-151.0,0.00019671,2]
[365163423,1749505876424,-493.84,0.00019671,2]
[365163424,1749505876434,-754.92,0.00019671,2]
[365163425,1749505876444,-980.32,0.00019671,2]
[365163426,1749505876456,-151.0,0.00019671,2]
[365163427,1749505876466,-491.86,0.00019671,2]
[365163428,1749505876476,-490.0,0.00019671,2]
[365163429,1749505876486,-659.46,0.00019671,2]
[365163430,1749505876495,-490.0,0.00019671,2]
[365163431,1749505876505,-490.0,0.00019671,2]
[365163432,1749505876515,-490.0,0.00019671,2]
[365163433,1749505876524,-490.0,0.00019671,2]
[365163434,1749505876535,-693.31,0.00019671,2]
[365163435,1749505876544,-1654.58,0.00019671,2]
[365163436,1749505876554,-492.26,0.00019671,2]
[365163437,1749505876564,-1764.12,0.00019671,2]
[365163438,1749505876575,-600.22,0.00019671,2]
[365163439,1749505876586,-762.31,0.00019671,2]
[365163440,1749505876596,-1248.33,0.00019671,2]
[365163441,1749505876606,-22013.02,0.00019671,2]
[365163442,1749505876616,-490.0,0.00019671,2]
[365163443,1749505876626,-2442.75,0.00019671,2]
[365163444,1749505876636,-490.0,0.00019671,2]
[365163445,1749505876646,-609.93,0.00019671,2]
[365163446,1749505876655,-490.0,0.00019671,2]
[365163447,1749505876665,-490.0,0.00019671,2]
[365163448,1749505876675,-988.94,0.00019671,2]
[365163449,1749505876685,-498.25,0.00019671,2]
[365163450,1749505876695,-490.0,0.00019671,2]
[365163451,1749505876705,-490.0,0.00019671,2]
[365163452,1749505876715,-1715.74,0.00019671,2]
[365163453,1749505876726,-690.76,0.00019671,2]
[365163454,1749505876927,-490.0,0.00019671,2]
[365163455,1749505876937,-1189.59,0.00019671,2]
[365163456,1749505876947,-490.0,0.00019671,2]
[365163457,1749505876957,-989.49,0.00019671,2]
[365163458,1749505876968,-571.45,0.00019671,2]
[365163459,1749505876977,-1030.343412,0.00019671,2]
[365163460,1749505876987,-928.71,0.00019671,2]
[365163461,1749505876996,-2350.31,0.00019671,2]
[365163462,1749505877006,-1264.31,0.00019671,2]
[365163463,1749505877015,-490.0,0.00019671,2]
[365163464,1749505877024,-1030.343412,0.00019671,2]
[365163465,1749505877034,-1354.02,0.00019671,2]
[365163466,1749505877043,-685.55,0.00019671,2]
[365163467,1749505877054,-428.618444,0.00019671,2]
[365163468,1749505877063,-1082.19,0.00019671,2]
[365163469,1749505877073,-490.0,0.00019671,2]
[365163470,1749505877083,-1131.15,0.00019671,2]
[365163471,1749505877092,-2694.05,0.00019671,2]
[365163472,1749505877102,-490.0,0.00019671,2]
[365163473,1749505877111,-931.9,0.00019671,2]
[365163474,1749505877121,-428.618444,0.00019671,2]
[365163475,1749505877131,-1853.72,0.00019671,2]
[365163476,1749505877140,-1170.92,0.00019671,2]
[365163477,1749505877150,-490.0,0.00019671,2]
[365163478,1749505877160,-1121.52,0.00019671,2]
[365163479,1749505877169,-3711.47,0.00019671,2]
[365163480,1749505877178,-976.41,0.00019671,2]
[365163481,1749505877188,-513.94,0.00019671,2]
[365163482,1749505877197,-1000.0,0.00019671,2]
[365163483,1749505877206,-490.0,0.00019671,2]
[365163484,1749505877216,-490.0,0.00019671,2]
[365163485,1749505877225,-5578.96,0.00019671,2]
[365163486,1749505877235,-795.61,0.00019671,2]
[365163487,1749505877244,-616.39,0.00019671,2]
[365163488,1749505877253,-680.92,0.00019671,2]
[365163489,1749505877263,-2341.74,0.00019671,2]
[365163490,1749505877272,-687.79,0.00019671,2]
[365163491,1749505877281,-151.0,0.00019671,2]
[365163492,1749505877290,-2783.44,0.00019671,2]
[365163493,1749505877299,-617.79,0.00019671,2]
[365163494,1749505877309,-490.0,0.00019671,2]
[365163495,1749505877318,-279.625302,0.00019671,2]
[365163496,1749505877327,-490.0,0.00019671,2]
[365163497,1749505877337,-178.889108,0.00019671,2]
[365163498,1749505877346,-490.0,0.00019671,2]
[365163499,1749505877356,-931.63,0.00019671,2]
[365163500,1749505877365,-490.0,0.00019671,2]
[365163501,1749505877375,-1384.66,0.00019671,2]
[365163502,1749505877385,-1211.54,0.00019671,2]
[365163503,1749505877394,-151.0,0.00019671,2]
[365163504,1749505877403,-2938.8,0.00019671,2]
[365163505,1749505877412,-178.889108,0.00019671,2]
[365163506,1749505877421,-490.0,0.00019671,2]
[365163507,1749505877431,-1356.04,0.00019671,2]
[365163508,1749505877441,-490.0,0.00019671,2]
[365163509,1749505877453,-151.0,0.00019671,2]
[365163510,1749505877462,-2060.31,0.00019671,2]
[365163511,1749505877472,-1043.72,0.00019671,2]
[365163512,1749505877481,-490.0,0.00019671,2]
[365163513,1749505877490,-2694.17,0.00019671,2]
[365163514,1749505877500,-961.23,0.00019671,2]
[365163515,1749505877509,-490.0,0.00019671,2]
[365163516,1749505877519,-5291.38,0.00019671,2]
[365163517,1749505877528,-749.91,0.00019671,2]
[365163518,1749505877537,-645.48,0.00019671,2]
[365163519,1749505877547,-490.0,0.00019671,2]
[365163520,1749505877556,-1362.15,0.00019671,2]
[365163521,1749505877565,-151.0,0.00019671,2]
[365163522,1749505877574,-720.48,0.00019671,2]
[365163523,1749505877583,-1270.54,0.00019671,2]
[365163524,1749505877592,-555.43,0.00019671,2]
[365163525,1749505877601,-470.0,0.00019671,2]
[365163526,1749505877610,-490.0,0.00019671,2]
[365163527,1749505877619,-1114.61,0.00019671,2]
[365163528,1749505877629,-490.0,0.00019671,2]
[365163529,1749505877638,-960.15,0.00019671,2]
[365163530,1749505877648,-1309.18,0.00019671,2]
[365163531,1749505877657,-490.0,0.00019671,2]
[365163532,1749505877666,-490.0,0.00019671,2]
[365163533,1749505877675,-490.0,0.00019671,2]
[365163534,1749505877684,-490.0,0.00019671,2]
[365163535,1749505877694,-691.93,0.00019671,2]
[365163536,1749505877703,-758.66,0.00019671,2]
[365163537,1749505877712,-490.0,0.00019671,2]
[365163538,1749505877722,-1626.31,0.00019671,2]
[365163539,1749505877731,-629.07,0.00019671,2]
[365163540,1749505877740,-1086.43,0.00019671,2]
[365163541,1749505877750,-1306.59,0.00019671,2]
[365163542,1749505877760,-988.78,0.00019671,2]
[365163543,1749505877769,-656.06,0.00019671,2]
[365163544,1749505877778,-490.0,0.00019671,2]
[365163545,1749505877787,-490.0,0.00019671,2]
[365163546,1749505877796,-640.23,0.00019671,2]
[365163547,1749505877805,-460.0,0.00019671,2]
[365163548,1749505877815,-1623.53,0.00019671,2]
[365163549,1749505877824,-543.78,0.00019671,2]
[365163550,1749505877833,-368.28397896,0.00019671,2]
[365163551,1749505877843,-1710.27,0.00019671,2]
[365163552,1749505877853,-601.87,0.00019671,2]
[365163553,1749505877862,-643.44,0.00019671,2]
[365163554,1749505877872,-1498.81,0.00019671,2]
[365163555,1749505877885,-490.0,0.00019671,2]
[365163556,1749505877894,-480.0,0.00019671,2]
[365163557,1749505877904,-967.1,0.00019671,2]
[365163558,1749505877915,-490.0,0.00019671,2]
[365163559,1749505877927,-490.0,0.00019671,2]
[365163560,1749505877937,-490.0,0.00019671,2]
[365163561,1749505877948,-1454.84,0.00019671,2]
[365163562,1749505877961,-10000.0,0.00019671,2]
[365163563,1749505877973,-490.0,0.00019671,2]
[365163564,1749505877983,-880.05,0.00019671,2]
[365163565,1749505877993,-1024.87,0.00019671,2]
[365163566,1749505878003,-516.18,0.00019671,2]
[365163567,1749505878013,-1295.44,0.00019671,2]
[365163568,1749505878023,-417.18,0.00019671,2]
[365163569,1749505878033,-10000.0,0.00019671,2]
[365163570,1749505878043,-689.19,0.00019671,2]
[365163571,1749505878052,-1339.92,0.00019671,2]
[365163572,1749505878062,-449.43152586,0.00019671,2]
[365163573,1749505878073,-490.0,0.00019671,2]
[365163574,1749505878083,-3861.23,0.00019671,2]
[365163575,1749505878094,-630.2,0.00019671,2]
[365163576,1749505878105,-539.44,0.00019671,2]
[365163577,1749505878116,-490.0,0.00019671,2]
[365163578,1749505878126,-5299.32,0.00019671,2]
[365163579,1749505878137,-490.0,0.00019671,2]
[365163580,1749505878147,-490.0,0.00019671,2]
[365163581,1749505878160,-1150.54,0.00019671,2]
[365163582,1749505878171,-182.69815683,0.00019671,2]
[365163583,1749505878182,-490.0,0.00019671,2]
[365163584,1749505878193,-841.64,0.00019671,2]
[365163585,1749505878203,-837.59,0.00019671,2]
[365163586,1749505878213,-906.14,0.00019671,2]
[365163587,1749505878224,-490.0,0.00019671,2]
[365163588,1749505878233,-1010.65,0.00019671,2]
[365163589,1749505878243,-490.0,0.00019671,2]
[365163590,1749505878254,-1452.3,0.00019671,2]
[365163591,1749505878264,-490.0,0.00019671,2]
[365163592,1749505878274,-608.49,0.00019671,2]
[365163593,1749505878284,-490.0,0.00019671,2]
[365163594,1749505878294,-490.0,0.00019671,2]
[365163595,1749505878304,-490.0,0.00019671,2]
[365163596,1749505878313,-490.0,0.00019671,2]
[365163597,1749505878323,-1342.38,0.00019671,2]
[365163598,1749505878334,-766.22,0.00019671,2]
[365163599,1749505878345,-910.84,0.00019671,2]
[365163600,1749505878354,-1034.87,0.00019671,2]
[365163601,1749505878364,-1666.06,0.00019671,2]
[365163602,1749505878375,-1128.2,0.00019671,2]
[365163603,1749505878384,-1903.48,0.00019671,2]
[365163604,1749505878394,-629.891401,0.00019671,2]
[365163605,1749505878404,-490.0,0.00019671,2]
[365163606,1749505878414,-578.57,0.00019671,2]
[365163607,1749505878423,-1247.55,0.00019671,2]
[365163608,1749505878433,-490.0,0.00019671,2]
[365163609,1749505878443,-490.0,0.00019671,2]
[365163610,1749505878453,-530.81,0.00019671,2]
[365163611,1749505878462,-629.891401,0.00019671,2]
[365163612,1749505878472,-533.02,0.00019671,2]
[365163613,1749505878481,-1058.14,0.00019671,2]
[365163614,1749505878491,-490.0,0.00019671,2]
[365163615,1749505878500,-953.68,0.00019671,2]
[365163616,1749505878510,-490.0,0.00019671,2]
[365163617,1749505878520,-597.95,0.00019671,2]
[365163618,1749505878530,-561.54,0.00019671,2]
[365163619,1749505878539,-2763.66,0.00019671,2]
[365163620,1749505878550,-3031.76,0.00019671,2]
[365163621,1749505878560,-490.0,0.00019671,2]
[365163622,1749505878570,-551.23,0.00019671,2]
[365163623,1749505878580,-532.06,0.00019671,2]
[365163624,1749505878591,-2295.29,0.00019671,2]
[365163625,1749505878601,-151.698972,0.00019671,2]
[365163626,1749505878611,-626.76,0.00019671,2]
[365163627,1749505878620,-1514.643744,0.00019671,2]
[365163628,1749505878629,-705.95,0.00019671,2]
[365163629,1749505878639,-2196.49,0.00019671,2]
[365163630,1749505878648,-490.0,0.00019671,2]
[365163631,1749505878658,-1330.92,0.00019671,2]
[365163632,1749505878667,-151.698972,0.00019671,2]
[365163633,1749505878677,-490.0,0.00019671,2]
[365163634,1749505878686,-1514.643744,0.00019671,2]
[365163635,1749505878696,-492.13,0.00019671,2]
[365163636,1749505878706,-594.3,0.00019671,2]
[365163637,1749505878715,-3663.446558,0.00019671,2]
[365163638,1749505878726,-490.0,0.00019671,2]
[365163639,1749505878735,-490.0,0.00019671,2]
[365163640,1749505878746,-490.0,0.00019671,2]
[365163641,1749505878755,-3663.446558,0.00019671,2]
[365163642,1749505878765,-1866.71,0.00019671,2]
[365163643,1749505878776,-490.0,0.00019671,2]
[365163644,1749505878786,-1205.06,0.00019671,2]
[365163645,1749505878796,-490.0,0.00019671,2]
[365163646,1749505878806,-1050.12,0.00019671,2]
[365163647,1749505878815,-490.0,0.00019671,2]
[365163648,1749505878824,-490.0,0.00019671,2]
[365163649,1749505878835,-781.96,0.00019671,2]
[365163650,1749505878845,-490.0,0.00019671,2]
[365163651,1749505878854,-490.0,0.00019671,2]
[365163652,1749505878864,-1394.78,0.00019671,2]
[365163653,1749505878874,-2985.0,0.00019671,2]
[365163654,1749505878886,-919.0,0.00019671,2]
[365163655,1749505878896,-664.18404425,0.00019693,2]
[365163656,1749505878906,-571.17042486,0.00019695,2]
[365163657,1749505878917,-2985.0,0.00019699,2]
[365163658,1749505878927,-919.0,0.00019699,2]
[365163659,1749505878938,-955.03,0.00019699,2]
[365163660,1749505878948,-5700.11,0.00019699,2]
[365163661,1749505878958,-63142.29663995,0.000197,2]
[365163662,1749505878968,-300.0,0.000197,7]
[365163663,1749505878978,-811.98,0.000197,2]
[365163664,1749505878988,-244.973478,0.00019713,2]
[365163665,1749505878998,-166.2727,0.00019713,2]
[365163666,1749505879007,-166.2727,0.00019713,2]
[365163667,1749505879017,-1461.507717,0.00019713,2]
[365163668,1749505879026,-1461.507717,0.00019713,2]
[365163669,1749505879036,-151.0,0.00019713,2]
[365163670,1749505879046,-151.0,0.00019713,2]
[365163671,1749505879055,-215.0738,0.00019714,2]
[365163672,1749505879065,-1000.0,0.00019721,2]
[365163673,1749505879074,-500.0,0.00019721,2]
[365163674,1749505879084,-1000.0,0.00019721,2]
[365163675,1749505879095,-962.51433961,0.00019721,2]
[365163676,1749505879105,-173.85680973,0.00019721,2]
[365163677,1749505879115,-1000.0,0.00019721,2]
[365163678,1749505879125,-500.0,0.00019721,2]
[365163679,1749505879135,-628.29866768,0.00019721,2]
[365163680,1749505879146,-500.0,0.00019721,2]
[365163681,1749505879156,-1000.0,0.00019721,2]
[365163682,1749505879166,-1000.0,0.00019721,2]
[365163683,1749505879176,-1000.0,0.00019721,2]
[365163684,1749505879187,-2985.0,0.00019726,2]
[365163685,1749505879196,-919.0,0.00019726,2]
[365163686,1749505879207,-490.0,0.00019726,2]
[365163687,1749505879216,-490.0,0.00019726,2]
[365163688,1749505879226,-159.60029558,0.00019726,2]
[365163689,1749505879236,-500.0,0.00019726,2]
[365163690,1749505879246,-156.587,0.00019726,2]
[365163691,1749505879256,-664.18404425,0.00019728,2]
[365163692,1749505879266,-4909.27822583,0.00019735,2]
[365163693,1749505879276,-5841.07129857,0.00019735,2]
[365163694,1749505879286,-621.9530426,0.00019736,2]
[365163695,1749505879296,-151.0,0.00019753,2]
[365163696,1749505879306,-197.131426,0.00019753,2]
[365163697,1749505879316,-197.131426,0.00019753,2]
[365163698,1749505879326,-2985.0,0.00019753,2]
[365163699,1749505879336,-919.0,0.00019753,2]
[365163700,1749505879346,-16197.20590663,0.00019757,2]
[365163701,1749505879356,-215.69762739,0.00019761,2]
[365163702,1749505879366,-664.18404425,0.00019762,2]
[365163703,1749505879375,-500.0,0.00019777,2]
[365163704,1749505879385,-170.96828815,0.00019778,2]
[365163705,1749505879394,-2985.0,0.00019781,2]
[365163706,1749505879404,-919.0,0.00019781,2]
[365163707,1749505879413,-500.0,0.00019788,2]
[365163708,1749505879423,-664.18404425,0.00019797,2]
[365163709,1749505879433,-500.0,0.00019799,2]
[365163710,1749505879443,-955.03,0.00019799,2]
[365163711,1749505879452,-955.03,0.00019799,2]
[365163712,1749505879462,-955.03,0.00019799,2]
[365163713,1749505879472,-955.03,0.00019799,2]
[365163714,1749505879482,-955.17345445,0.00019799,2]
[365163715,1749505879492,-5700.11,0.00019799,2]
[365163716,1749505879502,-5700.11,0.00019799,2]
[365163717,1749505879512,-5700.11,0.00019799,2]
[365163718,1749505879522,-5700.11,0.00019799,2]
[365163719,1749505879532,-5700.1698163,0.00019799,2]
[365163720,1749505879542,-10057.65716949,0.000198,2]
[365163721,1749505879552,-151.0,0.000198,2]
[365163722,1749505879563,-151.0,0.000198,2]
[365163723,1749505879572,-179.479619,0.000198,2]
[365163724,1749505879582,-179.74098,0.000198,2]
[365163725,1749505879593,-179.74098,0.000198,2]
[365163726,1749505879602,-219.308609,0.000198,2]
[365163727,1749505879612,-219.308609,0.000198,2]
[365163728,1749505879622,-151.0,0.000198,2]
[365163729,1749505879631,-298.433642,0.000198,2]
[365163730,1749505879640,-151.0,0.000198,2]
[365163731,1749505879650,-260.518892,0.000198,2]
[365163732,1749505879659,-151.0,0.000198,2]
[365163733,1749505879669,-154.942484,0.000198,2]
[365163734,1749505879678,-154.942484,0.000198,2]
[365163735,1749505879687,-151.0,0.000198,2]
[365163736,1749505879696,-154.109727,0.000198,2]
[365163737,1749505879705,-300.0,0.000198,7]
[365163738,1749505879715,-1030.343412,0.000198,2]
[365163739,1749505879724,-1030.343412,0.000198,2]
[365163740,1749505879733,-428.618444,0.000198,2]
[365163741,1749505879743,-428.618444,0.000198,2]
[365163742,1749505879752,-151.0,0.000198,2]
[365163743,1749505879761,-151.0,0.000198,2]
[365163744,1749505879772,-10000.0,0.000198,2]
[365163745,1749505879783,-10000.0,0.000198,2]
[365163746,1749505879793,-629.891401,0.000198,2]
[365163747,1749505879802,-629.891401,0.000198,2]
[365163748,1749505879811,-151.698972,0.000198,2]
[365163749,1749505879820,-151.698972,0.000198,2]
[365163750,1749505879830,-126705.9080894,0.000198,2]
[365163751,1749505879840,-250.0,0.00019806,2]
[365163752,1749505879850,-250.0,0.00019806,2]
[365163753,1749505879859,-300.0,0.00019806,2]
[365163754,1749505879868,-3663.446558,0.00019808,2]
[365163755,1749505879879,-3663.446558,0.00019808,2]
[365163756,1749505879893,-2999.83647806,0.00019808,2]
[365163757,1749505879903,-923.0,0.00019808,2]
[365163758,1749505879912,-600.0,0.00019813,4]
[365163759,1749505879922,-600.0,0.00019813,4]
[365163760,1749505879931,-151.0,0.00019821,2]
[365163761,1749505879942,-154.670046,0.00019821,2]
[365163762,1749505879951,-154.670046,0.00019821,2]
[365163763,1749505879961,-820.692982,0.00019821,2]
[365163764,1749505879971,-820.692982,0.00019821,2]
[365163765,1749505879981,-2014.858368,0.00019821,2]
[365163766,1749505879990,-2014.858368,0.00019821,2]
[365163767,1749505880000,-277.714419,0.00019821,2]
[365163768,1749505880009,-277.714419,0.00019821,2]
[365163769,1749505880019,-151.0,0.00019821,2]
[365163770,1749505880028,-151.0,0.00019821,2]
[365163771,1749505880038,-185.416375,0.00019821,2]
[365163772,1749505880047,-185.416375,0.00019821,2]
[365163773,1749505880057,-849.586945,0.00019821,2]
[365163774,1749505880067,-849.586945,0.00019821,2]
[365163775,1749505880076,-268.015965,0.00019821,2]
[365163776,1749505880086,-151.0,0.00019821,2]
[365163777,1749505880096,-1456.9922889,0.00019821,2]
[365163778,1749505880106,-869.839935,0.00019821,2]
[365163779,1749505880116,-869.839935,0.00019821,2]
[365163780,1749505880125,-178.889108,0.00019821,2]
[365163781,1749505880135,-151.0,0.00019821,2]
[365163782,1749505880145,-178.889108,0.00019821,2]
[365163783,1749505880154,-151.0,0.00019821,2]
[365163784,1749505880164,-1514.643744,0.00019821,2]
[365163785,1749505880174,-1514.643744,0.00019821,2]
[365163786,1749505880183,-664.18404425,0.00019831,2]
[365163787,1749505880193,-500.0,0.00019833,2]
[365163788,1749505880203,-500.0,0.00019834,2]
[365163789,1749505880212,-150.0,0.00019834,2]
[365163790,1749505880222,-12727.72539061,0.00019835,2]
[365163791,1749505880232,-274.445893,0.00019835,2]
[365163792,1749505880241,-230.138801,0.00019835,2]
[365163793,1749505880251,-465.33842201,0.00019835,2]
[365163794,1749505880260,-490.0,0.00019835,2]
[365163795,1749505880270,-490.0,0.00019835,2]
[365163796,1749505880280,-166.2727,0.00019835,2]
[365163797,1749505880289,-166.2727,0.00019835,2]
[365163798,1749505880299,-490.0,0.00019835,2]
[365163799,1749505880308,-490.0,0.00019835,2]
[365163800,1749505880318,-490.0,0.00019835,2]
[365163801,1749505880327,-490.0,0.00019835,2]
[365163802,1749505880336,-648.08,0.00019835,2]
[365163803,1749505880346,-490.0,0.00019835,2]
[365163804,1749505880356,-723.43,0.00019835,2]
[365163805,1749505880366,-151.0,0.00019835,2]
[365163806,1749505880375,-1461.507717,0.00019835,2]
[365163807,1749505880385,-490.0,0.00019835,2]
[365163808,1749505880394,-1461.507717,0.00019835,2]
[365163809,1749505880404,-490.0,0.00019835,2]
[365163810,1749505880591,-490.0,0.00019835,2]
[365163811,1749505880620,-490.0,0.00019835,2]
[365163812,1749505880630,-649.02,0.00019835,2]
[365163813,1749505880639,-490.0,0.00019835,2]
[365163814,1749505880649,-490.0,0.00019835,2]
[365163815,1749505880658,-490.0,0.00019835,2]
[365163816,1749505880669,-490.0,0.00019835,2]
[365163817,1749505880678,-490.0,0.00019835,2]
[365163818,1749505880688,-650.01,0.00019835,2]
[365163819,1749505880697,-490.0,0.00019835,2]
[365163820,1749505880707,-680.92,0.00019835,2]
[365163821,1749505880717,-490.0,0.00019835,2]
[365163822,1749505880726,-490.0,0.00019835,2]
[365163823,1749505880735,-544.47,0.00019835,2]
[365163824,1749505880745,-490.0,0.00019835,2]
[365163825,1749505880755,-151.0,0.00019835,2]
[365163826,1749505880764,-1616.79,0.00019835,2]
[365163827,1749505880774,-1112.76,0.00019835,2]
[365163828,1749505880783,-490.0,0.00019835,2]
[365163829,1749505880793,-151.0,0.00019835,2]
[365163830,1749505880803,-490.0,0.00019835,2]
[365163831,1749505880812,-490.0,0.00019835,2]
[365163832,1749505880822,-539.54,0.00019835,2]
[365163833,1749505880831,-490.0,0.00019835,2]
[365163834,1749505880840,-490.0,0.00019835,2]
[365163835,1749505880850,-1190.05,0.00019835,2]
[365163836,1749505880860,-727.01,0.00019835,2]
[365163837,1749505880869,-490.0,0.00019835,2]
[365163838,1749505880879,-560.8,0.00019835,2]
[365163839,1749505880893,-490.0,0.00019835,2]
[365163840,1749505880902,-612.19,0.00019835,2]
[365163841,1749505880911,-490.0,0.00019835,2]
[365163842,1749505880921,-862.54,0.00019835,2]
[365163843,1749505880931,-644.48,0.00019835,2]
[365163844,1749505880940,-490.0,0.00019835,2]
[365163845,1749505880950,-490.0,0.00019835,2]
[365163846,1749505880959,-151.0,0.00019835,2]
[365163847,1749505880970,-593.15,0.00019835,2]
[365163848,1749505880979,-197.131426,0.00019835,2]
[365163849,1749505880989,-490.0,0.00019835,2]
[365163850,1749505880998,-635.87,0.00019835,2]
[365163851,1749505881008,-812.69,0.00019835,2]
[365163852,1749505881017,-197.131426,0.00019835,2]
[365163853,1749505881027,-640.28,0.00019835,2]
[365163854,1749505881036,-490.0,0.00019835,2]
[365163855,1749505881046,-525.65,0.00019835,2]
[365163856,1749505881055,-490.0,0.00019835,2]
[365163857,1749505881065,-490.0,0.00019835,2]
[365163858,1749505881074,-490.0,0.00019835,2]
[365163859,1749505881084,-913.45,0.00019835,2]
[365163860,1749505881094,-490.0,0.00019835,2]
[365163861,1749505881104,-669.78,0.00019835,2]
[365163862,1749505881114,-490.0,0.00019835,2]
[365163863,1749505881123,-1345.96,0.00019835,2]
[365163864,1749505881132,-490.0,0.00019835,2]
[365163865,1749505881141,-375.39113472,0.00019835,2]
[365163866,1749505881151,-519.16,0.00019835,2]
[365163867,1749505881160,-1075.45,0.00019835,2]
[365163868,1749505881169,-490.0,0.00019835,2]
[365163869,1749505881179,-490.0,0.00019835,2]
[365163870,1749505881188,-490.0,0.00019835,2]
[365163871,1749505881198,-490.0,0.00019835,2]
[365163872,1749505881207,-490.0,0.00019835,2]
[365163873,1749505881217,-490.0,0.00019835,2]
[365163874,1749505881226,-490.0,0.00019835,2]
[365163875,1749505881235,-490.0,0.00019835,2]
[365163876,1749505881245,-1452.8,0.00019835,2]
[365163877,1749505881254,-490.0,0.00019835,2]
[365163878,1749505881263,-490.0,0.00019835,2]
[365163879,1749505881272,-530.11,0.00019835,2]
[365163880,1749505881282,-490.0,0.00019835,2]
[365163881,1749505881291,-883.83,0.00019835,2]
[365163882,1749505881300,-1078.8,0.00019835,2]
[365163883,1749505881309,-569.66,0.00019835,2]
[365163884,1749505881318,-490.0,0.00019835,2]
[365163885,1749505881327,-490.0,0.00019835,2]
[365163886,1749505881336,-609.31,0.00019835,2]
[365163887,1749505881346,-1035.11,0.00019835,2]
[365163888,1749505881356,-490.0,0.00019835,2]
[365163889,1749505881365,-490.0,0.00019835,2]
[365163890,1749505881375,-490.0,0.00019835,2]
[365163891,1749505881385,-886.66,0.00019835,2]
[365163892,1749505881394,-793.61,0.00019835,2]
[365163893,1749505881404,-562.05,0.00019835,2]
[365163894,1749505881413,-1229.55,0.00019835,2]
[365163895,1749505881423,-490.0,0.00019835,2]
[365163896,1749505881432,-490.0,0.00019835,2]
[365163897,1749505881441,-490.0,0.00019835,2]
[365163898,1749505881450,-490.0,0.00019835,2]
[365163899,1749505881460,-642.35,0.00019835,2]
[365163900,1749505881469,-490.0,0.00019835,2]
[365163901,1749505881478,-490.0,0.00019835,2]
[365163902,1749505881488,-845.5,0.00019835,2]